Cogmind - Beta 15 @@@ ROGUE MODE // 2025.10.15 @ 23:40:26 Player: Auto Result: Destroyed by US-S9X(j) with Overtuned Pulse Rifle Performance ------------- Evolutions (0) 0 Regions Visited (3) 600 Robots Destroyed (15) 75 Value Destroyed (444) 444 Prototype IDs (1) 20 Alien Tech Used (0) 0 Bonus (0) 0 TOTAL SCORE: 1139 Bonus ------- None Cogmind --------- Core Integrity 0/250 Matter 274/300 Energy 75/100 System Corruption 0% Temperature Cool (12) Movement Core (100) Ox1 Location -9/Recycling Parts ------- > --- POWER (1) -------- (None) > --- PROPULSION (2) --- (None) > --- UTILITY (2) ------ Scrap Engine > --- WEAPON (2) ------- Heavy Assault Rifle > --- INVENTORY (5) ---- Makeshift Leg Subdweller Laser Light Assault Rifle Peak State ------------ > --- POWER ------------ Ion Engine > --- PROPULSION ------- Light Treads Light Treads > --- UTILITY ---------- Scrap Engine > --- WEAPON ----------- Subdweller Beam Cannon Heavy Assault Rifle > --- INVENTORY -------- Makeshift Leg Subdweller Laser Light Assault Rifle [Rating: 25] Favorites ----------- Power Ion Engine Engine Ion Engine Propulsion Aluminum Leg Treads Light Treads Leg Aluminum Leg Wheel Wheel Utility Small Storage Unit Device Subdweller Optics Storage Small Storage Unit Protection Light Armor Plating Weapon Subdweller Laser Energy Gun Subdweller Laser Energy Cannon Subdweller Beam Cannon Ballistic Gun Heavy Assault Rifle Build | -11 -10 -10 -9 ------- Run | Yrd Mat Sub Rec Slots Evolved . | . . . . Power . | . . . . Propulsion . | . . . . Utility . | . . . . Weapon . | . . . . Parts Attached 24 | 6 1 12 5 Power 3 | 1 . 2 . Engine 3 | 1 . 2 . Core . | . . . . Reactor . | . . . . Propulsion 9 | 2 . 5 2 Treads 4 | . . 2 2 Leg 3 | 2 . 1 . Wheel 2 | . . 2 . Hover . | . . . . Flight . | . . . . Utility 5 | 1 1 1 2 Device 3 | . 1 1 1 Storage 1 | 1 . . . Processor . | . . . . Hackware . | . . . . Protection 1 | . . . 1 Artifact . | . . . . Weapon 7 | 2 . 4 1 Energy Gun 5 | 2 . 3 . Energy Cannon 1 | . . 1 . Ballistic Gun 1 | . . . 1 Ballistic Cannon . | . . . . Launcher . | . . . . Special Weapon . | . . . . Impact Weapon . | . . . . Slashing Weapon . | . . . . Piercing Weapon . | . . . . Special Melee Weapon . | . . . . Unidentified Prototypes 1 | . . . 1 Parts Lost 5 | . . 4 1 Power . | . . . . Propulsion 4 | . . 3 1 Utility . | . . . . Weapon 1 | . . 1 . Highest Loss Streak 2 | . . 2 1 To Critical Strikes 1 | . . 1 . Average Backups 5 | 2 6 5 5 Power . | . 1 1 . Propulsion 2 | 1 4 2 2 Utility . | . . . . Weapon 2 | . 1 2 2 Tool/Special . | . . . . Unused Backups 1 | . . . 1 Power . | . . . . Propulsion . | . . . . Utility . | . . . . Weapon 1 | . . . 1 Tool/Special . | . . . . Average Slot Usage (%) 98 | . 95 99 98 Engine 14 | . 14 14 14 Treads 6 | . . 6 15 Leg 13 | . 28 10 12 Wheel 7 | . . 10 . Device 12 | . 10 14 7 Storage 14 | . 14 14 14 Energy Gun 19 | . 28 19 7 Energy Cannon 7 | . . 8 14 Peak Build Rating 25 | 6 9 14 25 Average Rating 10 | 4 8 11 11 On Entrance 7 | . 6 9 14 Naked Turns . | . . . . Heaviest Build 24 | 13 14 24 24 Greatest Support 40 | 20 20 40 40 Greatest Overweight (x) 1 | . . 1 1 Average Overweight (x) . | . . . . Largest Inventory Capacity 8 | 8 8 8 8 Average Capacity 7 | 6 8 8 7 Most Carried 8 | 6 6 8 8 Average Carried 6 | 2 6 6 6 Final Capacity 8 | 8 8 8 5 Final Carried 7 | 6 6 7 3 Class Distribution -------------------- 92% | Mutant 7% | Scavenger-Mutant Dominant Class ---------------- Mutant | -10/Materials Mutant | -10/Subcaves Scavenger-Mutant | -9/Recycling Resources | -11 -10 -10 -9 ----------- Run | Yrd Mat Sub Rec Matter Collected 452 | 205 65 132 50 Remotely . | . . . . Salvage Created 467 | . 167 250 50 Parts 33 | . 7 21 5 Haulers Intercepted . | . . . . Recyclers Shooed . | . . . . Parts Field Recycled . | . . . . Retrieved Matter . | . . . . Parts Self-Destructed 21 | . . 21 . Prevented . | . . . . Kills | -11 -10 -10 -9 ------- Run | Yrd Mat Sub Rec Combat Hostiles Destroyed 15 | . 4 10 1 Guns 15 | . 4 10 1 Classes Destroyed 4 | . 1 2 1 Swarmer 5 | . . 5 . Grunt 4 | . 4 . . Sentry 1 | . . . 1 Subdweller 5 | . . 5 . Best Kill Streak 5 | . 2 5 1 Combat Bots Only 5 | . 2 5 1 Max Kills in Single Turn 2 | . 1 2 1 Gunslinging . | . . . . Exploded . | . . . . Melee . | . . . . Uniques/NPCs Destroyed . | . . . . Combat | -11 -10 -10 -9 -------- Run | Yrd Mat Sub Rec Hostile Shots Fired 141 | . 13 112 16 Missed 49 | . 1 44 4 Hits 92 | . 12 68 12 Projectile 92 | . 12 68 12 Critical Strikes 1 | . . 1 . Damage Taken 1287 | . 159 901 227 Core 259 | . 27 163 69 Absorbed by Shields . | . . . . Core Remaining (%) 100 | 100 . . . Volleys Fired 45 | . 12 30 3 Largest 2 | . 2 2 2 Hottest 140 | . 90 140 140 Shots Fired 90 | . 24 60 6 Gun 84 | . 24 57 3 Cannon 6 | . . 3 3 Launcher . | . . . . Special . | . . . . Kinetic 1 | . . . 1 Thermal 89 | . 24 60 5 Explosive . | . . . . Electromagnetic . | . . . . Robot Hit Streak 22 | . 4 22 14 Robot Miss Streak 5 | . 2 5 1 Penetration Max . | . . . . Secondary Targets . | . . . . Shots Hit Robots 60 | . 15 41 4 Core Hits 27 | . 8 17 2 Critical Kills . | . . . . Critical Parts Destroyed . | . . . . Critical Strikes 2 | . 1 1 . Burn 2 | . 1 1 . Melee Attacks . | . . . . Impact . | . . . . Slashing . | . . . . Piercing . | . . . . Sneak Attacks . | . . . . Combat Hostiles . | . . . . Follow-up Attacks . | . . . . Damage Inflicted 862 | . 178 592 92 Guns 831 | . 176 592 63 Cannons 29 | . . . 29 Explosions . | . . . . Melee . | . . . . Ramming 2 | . 2 . . Kinetic 18 | . . . 18 Thermal 842 | . 176 592 74 Explosive . | . . . . Electromagnetic . | . . . . Impact . | . . . . Slashing . | . . . . Piercing . | . . . . Highest Corruption . | . . . . Average Corruption . | . . . . Corruption Purged . | . . . . Corruption Blocked . | . . . . Overload Shots . | . . . . Overflow Damage . | . . . . Projectiles . | . . . . Explosions . | . . . . Melee . | . . . . Knockbacks . | . . . . Impact . | . . . . Kinetic . | . . . . Secondary . | . . . . Self-Inflicted Damage . | . . . . Shots . | . . . . Rammed . | . . . . Targets Rammed 1 | . 1 . . Kicked 1 | . 1 . . Crushed . | . . . . Highest Temperature 177 | . 23 24 177 Average Temperature 34 | . 10 8 73 Received Heat Transfer 387 | . 90 198 99 Siege Activations . | . . . . Martial Activations . | . . . . Shielding Activations . | . . . . Robots Disrupted . | . . . . Combat Hostiles . | . . . . Robots Corrupted . | . . . . Combat Hostiles . | . . . . Parts Fried . | . . . . Impact Corruptions . | . . . . Robots Melted . | . . . . Combat Hostiles . | . . . . Parts Melted 4 | . 4 . . Heat Transferred 1743 | . 545 1111 87 Parts Sabotaged . | . . . . Parts Stolen . | . . . . Parts Stripped . | . . . . Power Chain Reactions . | . . . . Alert | -11 -10 -10 -9 ------- Run | Yrd Mat Sub Rec Maximum Alert Level . | . . . . Low Security (%) 100 | 100 100 . 100 Level 1 . | . . . . Level 2 . | . . . . Level 3 . | . . . . Level 4 . | . . . . Level 5 . | . . . . High Security . | . . . . Max Security . | . . . . Peak Influence 50 | . 50 . 21 Initial . | . . . . Average 6 | . 11 . 2 Influence Increases 326 | . 90 215 21 Destroy 0b10 Robot/C 200 | . 80 100 20 Destroy Leader 20 | . 10 10 . Destroy Structure 1 | . . . 1 Lose Combat Pursuer 105 | . . 105 . Influence Decreases 326 | . 90 215 21 Time Decay 286 | . 90 175 21 Lost Part 40 | . . 40 . Squads Dispatched 2 | . 2 . . Investigation . | . . . . Extermination . | . . . . Reinforcement 2 | . 2 . . Assault . | . . . . Garrison . | . . . . Intercept . | . . . . Searches Triggered . | . . . . Construction Impeded . | . . . . Haulers Reinforced . | . . . . Active Scanning Responses . | . . . . Cargo Convoy Interrupts . | . . . . Stealth | -11 -10 -10 -9 --------- Run | Yrd Mat Sub Rec Distress Signals 2 | . 2 . . Communications Jammed . | . . . . Distress Signals . | . . . . Times Spotted 32 | . 8 22 2 Peak Tracking Total 10 | . 4 10 2 Tactical Retreats 2 | . . 2 . Traps | -11 -10 -10 -9 ------- Run | Yrd Mat Sub Rec Traps Triggered . | . . . . Indirectly . | . . . . Trap Hack Attempts . | . . . . Triggered . | . . . . Disarmed . | . . . . Reprogrammed . | . . . . Reused . | . . . . Traps Extracted . | . . . . Installed . | . . . . Triggered . | . . . . Machines | -11 -10 -10 -9 ---------- Run | Yrd Mat Sub Rec Machines Disabled 1 | . . . 1 Max in Single Turn 1 | . . . 1 Machines Repaired . | . . . . Machines Dismantled . | . . . . Machines Sabotaged . | . . . . Overloaded Fab Kills . | . . . . Hacking | -11 -10 -10 -9 --------- Run | Yrd Mat Sub Rec Machines Accessed 3 | . . 1 2 Terminals . | . . . . Fabricators . | . . . . Repair Stations . | . . . . Recycling Units 1 | . . . 1 Scanalyzers . | . . . . Garrison Access . | . . . . Total Hacks 10 | . . 3 7 Successful 9 | . . 3 6 Failed 1 | . . . 1 Catastrophic . | . . . . Database Lockouts . | . . . . Manual 4 | . . 1 3 Terminals . | . . . . Fabricators . | . . . . Repair Stations . | . . . . Recycling Units 4 | . . . 4 Scanalyzers . | . . . . Garrison Access . | . . . . Terminal Hacks 6 | . . 3 3 Record 4 | . . 3 1 Release Object 2 | . . . 2 Fabricator Hacks . | . . . . Repair Station Hacks . | . . . . Recycling Unit Hacks 1 | . . . 1 Retrieve Components 1 | . . . 1 Scanalyzer . | . . . . Garrison Access Hacks . | . . . . Unauthorized Hacks 2 | . . . 2 Terminals . | . . . . Fabricators . | . . . . Repair Stations . | . . . . Recycling Units 2 | . . . 2 Reject 1 | . . . 1 Recyclers 1 | . . . 1 Scanalyzers . | . . . . Garrison Access . | . . . . Data Cores Recovered . | . . . . Used . | . . . . Hacking Detections 1 | . . . 1 Full Trace Events 1 | . . . 1 Feedback Events . | . . . . Feedback Blocked . | . . . . Robot Schematics Acquired . | . . . . Robots Built . | . . . . Authchips . | . . . . Time . | . . . . Total Robot Build Rating . | . . . . Part Schematics Acquired . | . . . . Parts Built . | . . . . Authchips . | . . . . Time . | . . . . Total Part Build Rating . | . . . . Parts Repaired . | . . . . Time . | . . . . Parts Recycled . | . . . . Recycled Matter . | . . . . Retrieved Matter . | . . . . Retrieved Components 3 | . . . 3 Parts Scanalyzed . | . . . . Part Schematics Acquired . | . . . . Parts Damaged . | . . . . Bothacking | -11 -10 -10 -9 ------------ Run | Yrd Mat Sub Rec Used RIF Installer . | . . . . Robots Hacked . | . . . . Non-combat . | . . . . Combat . | . . . . Robot Hacks Applied . | . . . . Relay Couplers Released . | . . . . Fabnet Peak Effective % . | . . . . Robots Rewired . | . . . . Allies Hacked . | . . . . Hacks Repelled . | . . . . Allies | -11 -10 -10 -9 -------- Run | Yrd Mat Sub Rec Total Allies . | . . . . Largest Group . | . . . . Highest-Rated Group . | . . . . Highest-Rated Ally . | . . . . Total Orders . | . . . . Ally Attacks . | . . . . Total Damage . | . . . . Kills . | . . . . Allies Corrupted . | . . . . Allies Melted . | . . . . Intel | -11 -10 -10 -9 ------- Run | Yrd Mat Sub Rec Active Infowar (turns) 1103 | . . 1001 102 Optics 1103 | . . 1001 102 Robot Analysis Total . | . . . . Derelict Logs Recovered 1 | . . 1 . Drone Launches . | . . . . Drone Recoveries . | . . . . Exploration | -11 -10 -10 -9 ------------- Run | Yrd Mat Sub Rec Turns Passed 1705 | 74 269 1163 199 Spaces Moved 1078 | 51 85 858 84 Core 2 | 2 . . . Treads 177 | . . 119 58 Legs 480 | 49 85 320 26 Wheels 419 | . . 419 . Hover . | . . . . Flight . | . . . . Fastest Speed 50 | 50 120 80 130 Average Speed 119 | 117 120 115 154 Slowest Speed 240 | 120 120 190 240 Overloaded Moves . | . . . . Propulsion Burnouts . | . . . . Robots Hopped . | . . . . Potential Cave-ins . | . . . . Cave-ins Triggered . | . . . . Exploration Rate (%) 25 | 4 23 58 16 Regions Visited 3 Branch Regions 2 Pre-discovered Areas . | . . . . Known Exits Taken . | . . . . Unknown Exits Taken 3 | 1 1 1 . Scrap Searched . | . . . . Spaces Dug 1 | . . 1 . Terrain Destroyed 1 | . . 1 . Melee . | . . . . Projectile 1 | . . 1 . AOE . | . . . . Terrain Rammed . | . . . . Walls Destroyed . | . . . . Machines Disabled . | . . . . Actions | -11 -10 -10 -9 --------- Run | Yrd Mat Sub Rec Total 1404 | 62 227 965 150 Wait 224 | . 129 52 43 Move 1075 | 50 84 857 84 Hop . | . . . . Pick Up 13 | 6 . 5 2 Fast Attach 14 | 6 1 2 5 Attach 4 | . . 4 . Detach . | . . . . Swap 10 | . . 9 1 Drop 18 | . . 6 12 Fire 45 | . 12 30 3 Melee . | . . . . Ram . | . . . . Kick 1 | . 1 . . Crush . | . . . . Escape Stasis . | . . . . Rewire . | . . . . Trap . | . . . . Miscellaneous . | . . . . Route ------- -11/Scrapyard -10/Materials (discovered 2 exits: [*Mat] / *Sub) -10/Subcaves (discovered 3 exits: [*Mat x2] / *Rec) -9/Recycling History --------- Turn | Location | Event 10 | -11/Scrapyard | Discovered new exit (range 16) 75 | -11/Scrapyard | Entered Materials 76 | -10/Materials | Met a group of wandering Federalists 145 | -10/Materials | Discovered new exit (range 15) 192 | -10/Materials | Lost 4 allies 317 | -10/Materials | Build established: Mutant 339 | -10/Materials | Discovered new exit (range 5) 344 | -10/Materials | Entered Subcaves 345 | -10/Subcaves | Continued accompanying wandering Federalists (1) 355 | -10/Subcaves | A swath of the cavern ceiling suddenly collapsed 436 | -10/Subcaves | Ambushed by Subdwellers from Twisted Machinery 438 | -10/Subcaves | Discovered new exit (range 15) 529 | -10/Subcaves | Discovered new exit (range 10) 553 | -10/Subcaves | Visited Clippyterm 558 | -10/Subcaves | Learned Factory emergency access door positions 619 | -10/Subcaves | Core integrity fell below 50% 773 | -10/Subcaves | Shifting Twisted Machinery released Sub. Beam Cannon 776 | -10/Subcaves | Shifting Twisted Machinery released Sub. Laser 1081 | -10/Subcaves | A swath of the cavern ceiling suddenly collapsed 1340 | -10/Subcaves | Learned 2 Materials zone layouts 1348 | -10/Subcaves | Discovered new exit (range 15) 1507 | -10/Subcaves | Entered Recycling 1508 | -9/Recycling | Met a Zionite searching for Scraptown 1552 | -9/Recycling | Core integrity fell below 20% 1629 | -9/Recycling | Scanned before Scraplab entrance 1695 | -9/Recycling | Angered Scraplab inhabitants 1696 | -9/Recycling | Found Prototype Device 1703 | -9/Recycling | Identified Scrap Engine 1706 | -9/Recycling | Destroyed by US-S9X(j) with Overtuned Pulse Rifle Last Messages --------------- >>Release Inventory Accessing inventory controls... Prototype released... URGENT: Link to external system right away! 01695_ Dropped Scrap Shield Fragment. 01696_ Acquired Prototype Device. 01697_ Machine disabled. 01697_ Supplies damaged. 01698_ Machine disabled. 01699_ US-S9X(j) heat spikes uncontrollably. Prototype Device integrity failing. 01700_ Dropped Lgt. Armor Plating. 01700_ Dropped Sml. Storage Unit. 01701_ Dropped Prototype Device. 01703_ Acquired Prototype Device. 01703_ Identified Scrap Engine. 01704_ 0U-81N(j): "Defend the Scraplab!" 01704_ Dropped Ion Engine. 01705_ Dropped Lgt. Treads. 01706_ Dropped Sub. Beam Cannon. Map ----- +----------------------------------------------------+ | | | | | | | | | | | | | | | | | | | | | | | | | | | | | | | | | | | | | | | | | | | ????????????????????#########????????????????????? | | ????????????????????#"""""""#??#?????????????????? | | ????????????????????# =X " ##j#?????????????????? | | ??????????????####### !!c] #?????????????????? | | ?????????????## j/ =[@= #?????????????????? | | ?????????????# #####j = #?????????????????? | | ?????????????## #???# c ""#?????????????????? | | ??????????????# #???#"& "& X ""??????????????????? | | ??????????????# #???#" """""" #?????????????????? | | ???????????#####################?????????????????? | | ???????????# #?????????????????????????????? | | ???????????# #?????????????????????????????? | | ???????????# #?????????????????????????????? | | ???????????# #?????????????????????????????? | | ???????????####+####?????????????????????????????? | | ??????????????# #????????????????????????????????? | | ??????????????# #????????????????????????????????? | | ?????????###### #????????????????????????????????? | | ?????????#"""## #????????????????????????????????? | | ##########"Y"## #########????????????????????????? | | = [ #????????????????????????? | | = * #????????????????????????? | | r % #????????????????????????? | | ####### ######"##########???????????????????????? | | ???????##???#! ![ #???????????????????????? | | ????????????# ! !#???????????????????????? | | ????????????#! [ #???????????????????????? | | ????????????# !#???????????????????????? | | ????????????# #???????????????????????? | +----------------------------------------------------+ Best States ------------- Heat Dissipation 39 Energy Generation 15 Energy Capacity 250 Matter Stores 300 Matter Capacity 300 Sight Range 21 Terrain Scan Density 10 Armor Coverage 150 Evasion (%) 55 Recoil Reduction 2 Item Schematics ----------------- None Robot Schematics ------------------ None Fabricated ------------ Nothing Repaired ---------- Nothing Alien Tech Used ----------------- None Achievements -------------- None Challenges ------------ None Game ------ Seed ProcessingBiocellBoregun Manual? 0 Play Time 00:15:25 Cumulative 60.7 hours Start 2025.10.15 @ 23:25:53 End 2025.10.15 @ 23:40:26 Sessions 1 Manual Loads 0 Difficulty Rogue Special Mode None Game No. 43 Rogue 18 Adventurer 25 Explorer 0 Win Type - Total 0 Types 0/0/0/0/0/0/0/0/0/0 Lore% 17 Gallery% 30 Achievement% 29 Wizard Run 0 Options --------- Layout 0 ASCII 0 Keyboard 0 Movement Mouse Keybinds 0 Fullscreen 2 Font 18/SmallcapsGlow Map View 76x50 Zoom Use 0% Tactical HUD 1 Map Filters NONE Filters NONE Steam 1 RUN: 4ffd2f80-5c5c-4d05-bdb2-c00839f73938